Cogmind - Beta 16 @@@ ROGUE MODE // 2025.12.17 @ 15:23:02 Player: Mozco Result: Destroyed by DAS Turret with DAS Cannon Performance ------------- Evolutions (1) 500 Regions Visited (5) 1000 Robots Destroyed (66) 330 Value Destroyed (1392) 1392 Prototype IDs (21) 420 Alien Tech Used (0) 0 Bonus (300) 300 TOTAL SCORE: 3942 Bonus ------- Aligned with FarCom 300 Cogmind --------- Core Integrity 0/400 Matter 39/300 Energy 100/100 System Corruption 1% Temperature Cool (0) Movement Treading (200) Ox1 Location -9/Exiles Parts ------- > --- POWER (1) -------- (None) > --- PROPULSION (2) --- Light Treads Light Treads > --- UTILITY (4) ------ Improved Cooling System High-capacity Storage Unit > --- WEAPON (2) ------- (None) > --- INVENTORY (20) --- Improved Ion Engine Light Treads Light Treads Light Treads Light Treads Light Treads Advanced Myomer Leg Advanced Myomer Leg Experimental Heat Sink Gravity Neutralizer Structural Scanner Advanced Weapon Cycler Thief Drone Bay (2/3) AS-neutralizer No. 17b Heavy EM Pulse Gun 8R-AWN's Boregun 8R-AWN's Boregun Rocket Launcher Datajack Peak State ------------ > --- POWER ------------ Improved Ion Engine > --- PROPULSION ------- Light Treads Light Treads > --- UTILITY ---------- Improved Cooling System High-capacity Storage Unit Light Armor Plating Medium Armor Plating > --- WEAPON ----------- 8R-AWN's Boregun 8R-AWN's Boregun > --- INVENTORY -------- Improved Ion Engine Light Treads Light Treads Light Treads Light Treads Light Treads Advanced Myomer Leg Advanced Myomer Leg Experimental Heat Sink Gravity Neutralizer Structural Scanner Advanced Weapon Cycler Thief Drone Bay AS-neutralizer No. 17b Heavy EM Pulse Gun Rocket Launcher Rocket Launcher Rocket Launcher Datajack [Rating: 38] Favorites ----------- Power Improved Ion Engine Engine Improved Ion Engine Propulsion Light Treads Treads Light Treads Leg Aluminum Leg Wheel Wheel Utility High-capacity Storage Unit Device Scrap Suit Storage High-capacity Storage Unit Hackware Hacking Suite Protection Light Armor Plating Weapon Improved Assault Rifle Energy Gun Heavy EM Pulse Gun Ballistic Gun Improved Assault Rifle Launcher Rocket Launcher Special Melee Weapon Datajack Build | -11 -10 -10 -9 -9 -9 ------- Run | Yrd Mat Min Mat Min Exi Slots Evolved 2 | . . . 2 . . Power . | . . . . . . Propulsion . | . . . . . . Utility 2 | . . . 2 . . Weapon . | . . . . . . Parts Attached 56 | 8 6 11 22 2 7 Power 8 | 1 1 3 3 . . Engine 8 | 1 1 3 3 . . Core . | . . . . . . Reactor . | . . . . . . Propulsion 15 | 4 2 3 6 . . Treads 8 | 2 . . 6 . . Leg 5 | . 2 3 . . . Wheel 2 | 2 . . . . . Hover . | . . . . . . Flight . | . . . . . . Utility 16 | 1 1 1 9 1 3 Device 5 | . 1 1 1 1 1 Storage 3 | 1 . . 2 . . Processor . | . . . . . . Hackware 1 | . . . 1 . . Protection 7 | . . . 5 . 2 Artifact . | . . . . . . Weapon 17 | 2 2 4 4 1 4 Energy Gun 4 | 1 . 2 . 1 . Energy Cannon . | . . . . . . Ballistic Gun 10 | 1 2 2 3 . 2 Ballistic Cannon . | . . . . . . Launcher 2 | . . . 1 . 1 Special Weapon . | . . . . . . Impact Weapon . | . . . . . . Slashing Weapon . | . . . . . . Piercing Weapon . | . . . . . . Special Melee Weapon 1 | . . . . . 1 Unidentified Prototypes 2 | . . . 1 1 . Corrupted Parts 1 | . . 1 . . . System Corruption 2 | . . 2 . . . Parts Lost 12 | . 3 3 2 . 4 Power 3 | . 1 1 . . 1 Propulsion 2 | . 1 . 1 . . Utility 1 | . . . . . 1 Weapon 6 | . 1 2 1 . 2 Highest Loss Streak 3 | . 3 1 1 . 2 To Critical Strikes . | . . . . . . Average Backups 15 | 2 7 7 16 20 18 Power 1 | . . . . 1 1 Propulsion 4 | 1 4 4 4 5 5 Utility 5 | . . . 5 8 6 Weapon 4 | . 2 1 4 5 4 Tool/Special . | . . . . . . Unused Backups 22 | . 3 1 1 . 17 Power 3 | . . . . . 3 Propulsion 6 | . 2 . . . 4 Utility 10 | . . 1 1 . 8 Weapon 3 | . 1 . . . 2 Tool/Special . | . . . . . . Average Slot Usage (%) 89 | . 92 99 87 87 86 Engine 11 | . 10 13 11 11 10 Treads 14 | . . . 13 22 22 Leg 7 | . 14 28 8 . . Device 14 | . 11 14 15 14 14 Storage 11 | . 14 14 11 11 11 Protection 7 | . . . 5 7 12 Energy Gun 4 | . 5 6 5 1 3 Ballistic Gun 12 | . 22 21 16 20 3 Special Melee Weapon 3 | . . . . . 8 Peak Build Rating 38 | 6 7 11 23 28 38 Average Rating 19 | 3 6 8 21 23 22 On Entrance 12 | . 6 7 11 21 27 Avg Prop Armor Cover (%) . | . . . . . . Naked Turns . | . . . . . . Heaviest Build 71 | 11 13 15 64 61 71 Greatest Support 40 | 40 26 20 40 40 40 Greatest Overweight (x) 5 | 2 . . 5 1 1 Average Overweight (x) . | . . . 1 1 1 Largest Inventory Capacity 20 | 8 8 8 20 20 20 Average Capacity 16 | 6 8 8 17 20 20 Most Carried 20 | 6 8 8 20 20 20 Average Carried 15 | 2 7 7 16 19 18 Final Capacity 20 | 8 8 8 20 20 20 Final Carried 20 | 6 8 8 20 20 19 Scrap Suit Usage (%) 5 | . . . 21 . . Parts Cannibalized 4 | . . . 4 . . Class Distribution -------------------- 78% | Mutant 21% | Scavenger-Mutant Dominant Class ---------------- Mutant | -10/Materials Mutant | -10/Mines Scavenger-Mutant | -9/Materials Mutant | -9/Mines Mutant | -9/Exiles Resources | -11 -10 -10 -9 -9 -9 ----------- Run | Yrd Mat Min Mat Min Exi Matter Collected 1693 | 266 245 325 558 128 171 Remotely . | . . . . . . Salvage Created 2261 | . 364 435 1263 75 124 Parts 154 | . 26 33 90 3 2 Haulers Intercepted 3 | . 1 . 2 . . Recyclers Shooed . | . . . . . . Parts Field Recycled . | . . . . . . Retrieved Matter . | . . . . . . Parts Self-Destructed . | . . . . . . Prevented . | . . . . . . Parts Restored . | . . . . . . Kills | -11 -10 -10 -9 -9 -9 ------- Run | Yrd Mat Min Mat Min Exi Combat Hostiles Destroyed 54 | . 8 15 24 2 5 Guns 46 | . 8 15 21 2 . AOE 7 | . . . 3 . 4 Classes Destroyed 11 | . 5 . 5 . 1 Worker 5 | . 1 . 4 . . Builder 2 | . 1 . 1 . . Tunneler 1 | . . . 1 . . Hauler 3 | . 1 . 2 . . Recycler 2 | . . . 2 . . Operator 2 | . . . 2 . . Watcher 1 | . . . 1 . . Swarmer 21 | . 3 9 9 . . Grunt 22 | . 5 6 9 2 . Sentry 6 | . . . 6 . . Assembled 4 | . . . . . 4 Best Kill Streak 7 | . 6 3 7 2 4 Combat Bots Only 7 | . 5 3 7 2 4 Max Kills in Single Turn 4 | . 1 1 4 1 2 Gunslinging 1 | . . . 1 . . Exploded 3 | . . . 3 . 2 Melee . | . . . . . . Uniques/NPCs Destroyed 1 | . . . . . 1 8R-AWN (-9/Exiles) Combat | -11 -10 -10 -9 -9 -9 -------- Run | Yrd Mat Min Mat Min Exi Hostile Shots Fired 279 | . 47 81 113 18 20 Missed 65 | . 9 22 27 5 2 Hits 214 | . 38 59 86 13 18 Projectile 214 | . 38 59 86 13 18 Critical Strikes 5 | . . . 3 . 2 Damage Taken 3073 | . 399 639 1045 170 820 Core 583 | . 72 107 180 11 213 Absorbed by Shields . | . . . . . . Regen/Repaired (Parts) 153 | . . . 153 . . Core Remaining (%) 64 | 100 . 28 . . . Volleys Fired 408 | . 35 54 83 6 230 Largest 2 | . 2 2 2 2 2 Hottest 88 | . 60 60 88 46 66 Shots Fired 588 | . 69 106 156 12 245 Gun 577 | . 69 106 155 12 235 Cannon . | . . . . . . Launcher 11 | . . . 1 . 10 Special . | . . . . . . Kinetic 310 | . 60 92 117 12 29 Thermal 37 | . . . 37 . . Explosive 11 | . . . 1 . 10 Electromagnetic 230 | . 9 14 1 . 206 Robot Hit Streak 31 | . 8 7 18 6 31 Robot Miss Streak 5 | . 4 5 5 1 4 Penetration Max . | . . . . . . Secondary Targets 5 | . 2 2 1 . . Max Gunslinging Chain 1 | . 1 1 1 . . Shots Hit Robots 416 | . 41 52 112 11 200 Core Hits 126 | . 16 24 48 5 33 Critical Kills 1 | . . 1 . . . Critical Parts Destroyed 1 | . . . 1 . . Critical Strikes 7 | . . 1 2 . 4 Burn 1 | . . . 1 . . Destroy 2 | . . 1 1 . . Corrupt 4 | . . . . . 4 Melee Attacks 5 | . . . . . 5 Impact . | . . . . . . Slashing . | . . . . . . Piercing . | . . . . . . Sneak Attacks 4 | . . . . . 4 Combat Hostiles . | . . . . . . Follow-up Attacks . | . . . . . . Damage Inflicted 4071 | . 592 589 1970 199 721 Guns 3340 | . 571 589 1730 179 271 Cannons . | . . . . . . Explosions 688 | . 21 . 217 . 450 Melee . | . . . . . . Ramming 43 | . . . 23 20 . Kinetic 2590 | . 494 520 1312 179 85 Thermal 424 | . 21 . 403 . . Explosive 667 | . . . 217 . 450 Electromagnetic 347 | . 77 69 15 . 186 Impact . | . . . . . . Slashing . | . . . . . . Piercing . | . . . . . . Highest Corruption 2 | . . 2 1 1 1 Average Corruption 1 | . . 2 1 1 1 Corruption Purged . | . . . . . . Corruption Blocked . | . . . . . . Effects 26 | . . . 6 3 17 Message Errors 7 | . . . 1 1 5 Matter Fused 3 | . . . 1 . 2 Heat Flow Errors 2 | . . . 1 . 1 Energy Discharges 7 | . . . . 1 6 Data Loss (minor) 2 | . . . 1 1 . Data Loss (major) 1 | . . . . . 1 Misfires 1 | . . . 1 . . Alerts 2 | . . . 1 . 1 Weapon Failures 1 | . . . . . 1 Overload Shots . | . . . . . . Overflow Damage 17 | . . . . . 17 Projectiles . | . . . . . . Explosions 17 | . . . . . 17 Melee . | . . . . . . Knockbacks 1 | . . . . 1 . Impact 1 | . . . . 1 . Kinetic . | . . . . . . Secondary . | . . . . . . Self-Inflicted Damage . | . . . . . . Shots . | . . . . . . Rammed 6 | . . . 5 1 . Targets Rammed 8 | . . . 7 1 . Kicked 1 | . . . 1 . . Crushed 1 | . . . 1 . . Highest Temperature 312 | . 50 29 241 13 312 Average Temperature 57 | . 22 7 43 6 97 Received Heat Transfer 896 | . 186 240 351 99 20 Siege Activations . | . . . . . . Martial Activations . | . . . . . . Shielding Activations . | . . . . . . Robots Disrupted . | . . . . . . Combat Hostiles . | . . . . . . Robots Corrupted 1 | . . . . . 1 Combat Hostiles 1 | . . . . . 1 Parts Fried 1 | . . . . . 1 Impact Corruptions . | . . . . . . Robots Melted . | . . . . . . Combat Hostiles . | . . . . . . Parts Melted 3 | . . . 3 . . Heat Transferred 1086 | . 50 . 1036 . . Parts Sabotaged . | . . . . . . Parts Stolen . | . . . . . . Parts Stripped . | . . . . . . Power Chain Reactions 1 | . 1 . . . . Alert | -11 -10 -10 -9 -9 -9 ------- Run | Yrd Mat Min Mat Min Exi Maximum Alert Level 1 | . . . 1 . . Low Security (%) 70 | 100 100 100 36 100 . Level 1 29 | . . . 63 . . Level 2 . | . . . . . . Level 3 . | . . . . . . Level 4 . | . . . . . . Level 5 . | . . . . . . High Security . | . . . . . . Max Security . | . . . . . . Peak Influence 327 | . 156 182 327 96 . Initial 66 | . . 60 39 66 . Average 144 | . 77 112 226 24 . Influence Increases 1543 | . 296 390 807 50 . Destroy 0b10 Robot/C 980 | . 160 300 480 40 . Destroy 0b10 Robot/NC 80 | . 15 . 65 . . Destroy Leader 238 | . 32 60 136 10 . Successful Hack 43 | . 35 . 8 . . Disable Machine 15 | . . . 15 . . Destroy Structure 22 | . 9 . 13 . . Lose Combat Pursuer 165 | . 45 30 90 . . Influence Decreases 1543 | . 140 444 738 221 . Entered New Map 264 | . . 96 63 105 . Time Decay 1049 | . 110 318 505 116 . Lost Part 80 | . 30 30 20 . . Purge Threat 150 | . . . 150 . . Squads Dispatched 9 | . 4 . 4 1 . Investigation 7 | . 4 . 2 1 . Extermination . | . . . . . . Reinforcement 2 | . . . 2 . . Assault . | . . . . . . Garrison . | . . . . . . Intercept . | . . . . . . Searches Triggered . | . . . . . . Construction Impeded . | . . . . . . Haulers Reinforced . | . . . . . . Active Scanning Responses . | . . . . . . Cargo Convoy Interrupts . | . . . . . . Stealth | -11 -10 -10 -9 -9 -9 --------- Run | Yrd Mat Min Mat Min Exi Distress Signals 5 | . 2 . 3 . . Communications Jammed . | . . . . . . Distress Signals . | . . . . . . Times Spotted 81 | . 11 16 43 2 9 Peak Tracking Total 9 | . 4 3 6 2 9 Tactical Retreats 9 | . 2 2 3 . 2 Traps | -11 -10 -10 -9 -9 -9 ------- Run | Yrd Mat Min Mat Min Exi Traps Triggered 1 | . 1 . . . . Indirectly . | . . . . . . Trap Hack Attempts . | . . . . . . Triggered . | . . . . . . Disarmed . | . . . . . . Reprogrammed . | . . . . . . Reused . | . . . . . . Traps Extracted . | . . . . . . Installed . | . . . . . . Triggered . | . . . . . . Machines | -11 -10 -10 -9 -9 -9 ---------- Run | Yrd Mat Min Mat Min Exi Machines Disabled 8 | . . . 1 . 7 Max in Single Turn 2 | . . . 1 . 2 Machines Repaired . | . . . . . . Machines Dismantled . | . . . . . . Machines Sabotaged . | . . . . . . Overloaded Fab Kills . | . . . . . . Hacking | -11 -10 -10 -9 -9 -9 --------- Run | Yrd Mat Min Mat Min Exi Machines Accessed 16 | . 4 . 9 2 1 Terminals 11 | . 4 . 7 . . Fabricators . | . . . . . . Repair Stations 1 | . . . 1 . . Recycling Units . | . . . . . . Scanalyzers 1 | . . . 1 . . Garrison Access . | . . . . . . Total Hacks 55 | . 9 . 43 2 1 Successful 34 | . 4 . 27 2 1 Failed 19 | . 4 . 15 . . Catastrophic 2 | . 1 . 1 . . Database Lockouts 2 | . 1 . 1 . . Manual 25 | . 7 . 18 . . Terminals 36 | . 9 . 27 . . Fabricators . | . . . . . . Repair Stations 2 | . . . 2 . . Recycling Units . | . . . . . . Scanalyzers 14 | . . . 14 . . Garrison Access . | . . . . . . Terminal Hacks 15 | . 2 . 10 2 1 Record 1 | . . . . . 1 Robot Analysis 5 | . 1 . 4 . . Prototype ID Bank 3 | . 1 . 2 . . Open Door 2 | . . . . 2 . Alert Level 1 | . . . 1 . . Unreport Threat 1 | . . . 1 . . Dispatch Records 1 | . . . 1 . . Zone Layout 1 | . . . 1 . . Fabricator Hacks . | . . . . . . Repair Station Hacks 2 | . . . 2 . . Scan Component 1 | . . . 1 . . Repair 1 | . . . 1 . . Recycling Unit Hacks . | . . . . . . Scanalyzer 13 | . . . 13 . . Insert Component 5 | . . . 5 . . Analyze 7 | . . . 7 . . Retrieve Study 1 | . . . 1 . . Garrison Access Hacks . | . . . . . . Unauthorized Hacks 4 | . 2 . 2 . . Terminals 4 | . 2 . 2 . . Botnet 4 | . 2 . 2 . . Fabricators . | . . . . . . Repair Stations . | . . . . . . Recycling Units . | . . . . . . Scanalyzers . | . . . . . . Garrison Access . | . . . . . . Data Cores Recovered 1 | . . . 1 . . Used 1 | . . . 1 . . Hacking Detections 10 | . 4 . 6 . . Full Trace Events 5 | . 3 . 2 . . Feedback Events 1 | . . . 1 . . Corruption 1 | . . . 1 . . Feedback Blocked . | . . . . . . Robot Schematics Acquired . | . . . . . . Robots Built . | . . . . . . Authchips . | . . . . . . Time . | . . . . . . Total Robot Build Rating . | . . . . . . Part Schematics Acquired 5 | . . . 5 . . Parts Built . | . . . . . . Authchips . | . . . . . . Time . | . . . . . . Total Part Build Rating . | . . . . . . Part Studies Acquired 1 | . . . 1 . . Parts Repaired 1 | . . . 1 . . Time 32 | . . . 32 . . Parts Recycled . | . . . . . . Recycled Matter . | . . . . . . Retrieved Matter . | . . . . . . Retrieved Components . | . . . . . . Parts Scanalyzed 5 | . . . 5 . . Part Schematics Acquired 5 | . . . 5 . . Parts Damaged . | . . . . . . Bothacking | -11 -10 -10 -9 -9 -9 ------------ Run | Yrd Mat Min Mat Min Exi Used RIF Installer . | . . . . . . Robots Hacked 4 | . . . . . 4 Non-combat 3 | . . . . . 3 Combat 1 | . . . . . 1 Robot Hacks Applied 5 | . . . . . 5 parse_system 5 | . . . . . 5 Relay Couplers Released . | . . . . . . Fabnet Peak Effective % . | . . . . . . Robots Rewired . | . . . . . . Allies Hacked . | . . . . . . Hacks Repelled . | . . . . . . Allies | -11 -10 -10 -9 -9 -9 -------- Run | Yrd Mat Min Mat Min Exi Total Allies . | . . . . . . Largest Group . | . . . . . . Highest-Rated Group . | . . . . . . Highest-Rated Ally . | . . . . . . Total Orders . | . . . . . . Ally Attacks 19 | . . . . . 19 Total Damage 59 | . . . . . 59 Kills . | . . . . . . Allies Corrupted . | . . . . . . Allies Melted . | . . . . . . Intel | -11 -10 -10 -9 -9 -9 ------- Run | Yrd Mat Min Mat Min Exi Active Infowar (turns) 697 | . 248 449 . . . Structural 697 | . 248 449 . . . Robot Analysis Total 5 | . 1 . 4 . . Derelict Logs Recovered 2 | . . 1 . 1 . Drone Launches 9 | . . . . . 9 Drone Recoveries 8 | . . . . . 8 Exploration | -11 -10 -10 -9 -9 -9 ------------- Run | Yrd Mat Min Mat Min Exi Turns Passed 4952 | 66 287 716 1366 507 2010 Spaces Moved 2090 | 49 149 443 502 236 711 Core 11 | 11 . . . . . Treads 1261 | 9 . . 305 236 711 Legs 714 | . 74 443 197 . . Wheels 104 | 29 75 . . . . Hover . | . . . . . . Flight . | . . . . . . Fastest Speed 50 | 50 90 120 120 200 200 Average Speed 174 | 100 104 120 203 200 200 Slowest Speed 470 | 160 120 120 470 200 200 Overloaded Moves . | . . . . . . Propulsion Burnouts . | . . . . . . Robots Hopped . | . . . . . . Potential Cave-ins . | . . . . . . Cave-ins Triggered . | . . . . . . Exploration Rate (%) 48 | 3 28 96 64 39 62 Regions Visited 5 Branch Regions 3 Pre-discovered Areas 1 | . . . . . 1 Known Exits Taken . | . . . . . . Unknown Exits Taken 5 | 1 1 1 1 1 . Scrap Searched 4 | . . 2 . 2 . Spaces Dug . | . . . . . . Terrain Destroyed 50 | . 6 . 9 . 35 Melee . | . . . . . . Projectile . | . . . . . . AOE 50 | . 6 . 9 . 35 Terrain Rammed . | . . . . . . Walls Destroyed . | . . . . . . Machines Disabled . | . . . . . . Actions | -11 -10 -10 -9 -9 -9 --------- Run | Yrd Mat Min Mat Min Exi Total 2807 | 62 214 528 689 261 1053 Wait 131 | . 9 7 36 9 70 Move 2085 | 48 148 442 501 235 711 Hop . | . . . . . . Pick Up 48 | 4 10 5 21 2 6 Fast Attach 15 | 8 1 1 2 2 1 Attach 17 | . 4 3 4 . 6 Detach 3 | 2 . . 1 . . Swap 38 | . 1 8 18 2 9 Drop 49 | . 6 8 16 4 15 Fire 408 | . 35 54 83 6 230 Melee 5 | . . . . . 5 Ram . | . . . . . . Kick 1 | . . . 1 . . Crush 7 | . . . 6 1 . Escape Stasis . | . . . . . . Rewire . | . . . . . . Trap . | . . . . . . Miscellaneous . | . . . . . . Route ------- -11/Scrapyard -10/Materials -10/Mines (discovered 3 exits: *Mat x2 / [Sub]) -9/Materials (discovered 4 exits: *Mat x3 / *Min) -9/Mines -9/Exiles History --------- Turn | Location | Event 4 | -11/Scrapyard | Discovered new exit (range 16) 67 | -11/Scrapyard | Entered Materials 231 | -10/Materials | Lost 3 parts (1p1n1w) 288 | -10/Materials | Central database locked down 325 | -10/Materials | Discovered new exit (range 13) 336 | -10/Materials | Build established: Mutant 354 | -10/Materials | Entered Mines 408 | -10/Mines | Received a Rocket Launcher from a helpful Derelict 462 | -10/Mines | Discovered new exit (range 9) 516 | -10/Mines | Discovered new exit (range 10) 618 | -10/Mines | Core integrity fell below 50% 786 | -10/Mines | Found a Scrap Suit stashed away for nefarious purposes 807 | -10/Mines | Found Scrap Suit 986 | -10/Mines | Learned 4 Materials zone layouts 1036 | -10/Mines | Build established: Scavenger-Mutant 1052 | -10/Mines | Discovered new exit (range 6) 1070 | -10/Mines | Entered Materials 1070 | -9/Materials | Evolved 2 slots: Utility x2 1071 | -9/Materials | Identified exit to Materials 1223 | -9/Materials | Destroyed 7 combat bots 1960 | -9/Materials | Discovered exit to Materials (range 11) 2090 | -9/Materials | Discovered new exit (range 16) 2116 | -9/Materials | Central database locked down 2248 | -9/Materials | Discovered exit to Materials (range 16) 2314 | -9/Materials | Repaired Med. Armor Plating 2376 | -9/Materials | Build established: Mutant 2436 | -9/Materials | Entered Mines 2501 | -9/Mines | Deemed a non-threat by the Exiles lab entrance 2625 | -9/Mines | Learned Materials emergency access door positions 2676 | -9/Mines | Met a Derelict shopkeep closing up shop 2772 | -9/Mines | Found the Drone Emporium 2782 | -9/Mines | Found Prototype Device 2782 | -9/Mines | Identified Thief Drone Bay 2935 | -9/Mines | Discovered new exit (range 5) 2943 | -9/Mines | Entered Exiles 2993 | -9/Exiles | Met 8R-AWN 3037 | -9/Exiles | Met EX-HEX 3126 | -9/Exiles | Learned location of Zion (-6) 3128 | -9/Exiles | Met EX-DEC 3200 | -9/Exiles | Met EX-BIN 3544 | -9/Exiles | Aligned with FarCom system 3546 | -9/Exiles | Given EX-Vault access code 4194 | -9/Exiles | Attacked by the Exiles 4790 | -9/Exiles | Destroyed 8R-AWN 4805 | -9/Exiles | Found 8R-AWN's Boregun 4807 | -9/Exiles | Found 8R-AWN's Boregun 4908 | -9/Exiles | Core integrity fell below 50% 4937 | -9/Exiles | Core integrity fell below 20% 4953 | -9/Exiles | Destroyed by DAS Turret with DAS Cannon Last Messages --------------- 04456_ Acquired Datajack. 04471_ Jacked 8R-AWN... >>parse_system Reading system data... 04485_ Machine disabled. 04790_ 8R-AWN system terminally corrupted. 04790_ Exp. Targeting Computer fried. 04791_ Acquired 120 matter. 04854_ System corrupted: Energy discharge (-87). 04859_ HV Slug penetrates Machine. 04859_ Machine disabled. 04859_ HV Slug penetrates Machine. 04896_ HV Slug penetrates Wall. 04902_ HV Slug penetrates Machine. 04903_ Lgt. Armor Plating blasted off. 04908_ HV Slug penetrates Machine. 04909_ Med. Armor Plating destroyed. 04911_ Imp. Ion Engine destroyed. 04919_ Acquired 21 matter. 04949_ Rocket Launcher destroyed. Map ----- +----------------------------------------------------+ | ????????????????????????????????????????#" | | ????????????????????????????????????????#" ## | | ????????????????????????????????????????#""""""?# | | ????????????????????????????????????????##"###??# | | ????????????????????????????????????????????????# | | ???????????????????????????????????????????????# | | #?????????????????????????????????????????????## | | #????????????#######?????????????????????????#" | | "#####???????#!!! "#?????????????????????????#" | | # "##?????# "#?????????????????????????#" | | #?????# "#?????????????????????????#" | | ##???## ""#????????????#####????????#" | | #####" ""#???????????? """#???????#" | | # ##" ""#???????????"" """#???????## | | ?# #"" #????????????#"" #????????# | | ????# ! ###??????????#"" #????????#" | | ????####! # ##?????????#"" "#????????#" | | ???????### ##????????? ""?????????#" | | ?########" # ###????????" "?????????##" | | ?# !!" * # ####?????# #????????##"" | | ?#! !"### #???### ###?######"" | | ?#! [ !"## #####X# #"###""""""" | | ?#![ !!#####" ! """""" " "" | | ?# !""""""###???#"# %% % "" """ " | | ?##########?????### % % " | | ??????????????????### @ | | ????????????????????# | | ????????????????????### | | ??????????????????????#### | | ?????????????????????????# | | ????????????????????????? """" | | ?????????????????????????# ##### | | ?????????????????????????# ""##???? | | ????????????????????????# """##????? | | ????????????????????????# """##?????? | | ????????????????????????# ""#??????? | | ????????????????????????# ##??????? | | ????????????????????????# #?????? | | ????????????????????????# t ????? | | ????????????????????????# ???? | | ?????????????????????????#" ??? | | ?????????????????????????## ??? | | ??????????????????????????#" ??? | | ??????????????????????????#"""" ???? | | ??????????????????????????#"" ?????? | | ???????????????????????????" "???????? | | ?????????????????????????????" ????????? | | ?????????????????????????????? ??????????? | | ?????????????????????????????? ????????????? | | ???????????????????????????????" ???????????????? | +----------------------------------------------------+ Best States ------------- Heat Dissipation 55 Energy Generation 12 Energy Capacity 265 Matter Stores 300 Matter Capacity 300 Sight Range 16 Terrain Scan Density 10 Armor Coverage 525 Evasion (%) 55 Recoil Reduction 2 Offensive Hacking 10 Item Schematics ----------------- Structural Scanner | -9/Materials | Scanalyzed Lgt. Treads | -9/Materials | Scanalyzed Imp. Ion Engine | -9/Materials | Scanalyzed Datajack | -9/Materials | Scanalyzed Med. Armor Plating | -9/Materials | Scanalyzed Robot Schematics ------------------ None Fabricated ------------ Nothing Repaired ---------- Med. Armor Plating | 5% | -9/Materials Studied --------- Lgt. Treads | -9/Materials | Hacked Alien Tech Used ----------------- None Achievements -------------- None Challenges ------------ None Game ------ Seed CoordinationMagneticCycler Manual? 0 Play Time 00:30:40 Cumulative 431.6 hours Start 2025.12.17 @ 12:56:47 End 2025.12.17 @ 15:23:02 Sessions 2 Manual Loads 0 Difficulty Rogue Special Mode None Game No. 420 Rogue 416 Adventurer 3 Explorer 1 Win Type - Total 7 Types 6/0/1/0/0/0/0/0/0/0 Lore% 86 Gallery% 80 Achievement% 70 Wizard Run 0 Options --------- Layout 0 ASCII 0 Keyboard 0 Movement Mouse Keybinds 0 Fullscreen 2 Font 18/SmallcapsGlow Map View 76x50 Zoom Use 0% Tactical HUD 1 Map Filters NONE Filters NONE Steam 1 RUN: 1dd3b7d5-a0f1-4669-a823-a55217363c85